[Event "*** Titled Tuesday Blitz"]
[Site "Chess.com"]
[Date "2018.11.06"]
[Round "7"]
[White "mikhaillushenkov"]
[Black "731291"]
[Result "0-1"]
[WhiteElo "2653"]
[BlackElo "2582"]
[TimeControl "180+2"]
[EndTime "14:36:55 PST"]
[Termination "731291 won by resignation"]

1. Nf3 {[%clk 0:03:01.9]} 1... c5 {[%clk 0:03:00.1]} 2. c4 {[%clk 0:03:02.9]}
2... Nc6 {[%clk 0:03:00.5]} 3. Nc3 {[%clk 0:03:03.8]} 3... e5 {[%clk 0:03:01.2]}
4. e3 {[%clk 0:03:05]} 4... Nf6 {[%clk 0:03:02.1]} 5. Be2 {[%clk 0:03:05.6]}
5... d5 {[%clk 0:02:58.7]} 6. d4 {[%clk 0:03:05.4]} 6... e4 {[%clk 0:02:32.5]}
7. Ne5 {[%clk 0:03:05.3]} 7... Bd6 {[%clk 0:02:21.5]} 8. Qa4 {[%clk 0:03:04.3]}
8... O-O {[%clk 0:02:05.5]} 9. Nxc6 {[%clk 0:02:58.4]} 9... bxc6 {[%clk
0:02:07.4]} 10. dxc5 {[%clk 0:02:51]} 10... Be5 {[%clk 0:01:57]} 11. Qxc6 {[%clk
0:02:46]} 11... Be6 {[%clk 0:01:40.3]} 12. O-O {[%clk 0:02:28.1]} 12... Rc8
{[%clk 0:01:32.7]} 13. Qb5 {[%clk 0:02:27.9]} 13... dxc4 {[%clk 0:01:26.5]} 14.
c6 {[%clk 0:02:15.4]} 14... Qc7 {[%clk 0:01:22.6]} 15. g3 {[%clk 0:02:12.7]}
15... Rb8 {[%clk 0:00:58.5]} 16. Qa4 {[%clk 0:02:11.1]} 16... a5 {[%clk
0:00:50.8]} 17. Rd1 {[%clk 0:02:01.1]} 17... Rb4 {[%clk 0:00:48.7]} 18. Qc2
{[%clk 0:02:02.1]} 18... Qxc6 {[%clk 0:00:49.3]} 19. Bd2 {[%clk 0:01:57.8]}
19... Rfb8 {[%clk 0:00:46.5]} 20. Rab1 {[%clk 0:01:56.8]} 20... R4b7 {[%clk
0:00:41.2]} 21. Be1 {[%clk 0:01:56.2]} 21... h5 {[%clk 0:00:41.8]} 22. Bf1
{[%clk 0:01:54.3]} 22... h4 {[%clk 0:00:42.4]} 23. Bg2 {[%clk 0:01:55.6]} 23...
Bg4 {[%clk 0:00:34]} 24. Rdc1 {[%clk 0:01:39.9]} 24... Bf3 {[%clk 0:00:34.2]}
25. Na4 {[%clk 0:01:23.7]} 25... Bxg2 {[%clk 0:00:30]} 26. Kxg2 {[%clk
0:01:25.6]} 26... Qe6 {[%clk 0:00:24.3]} 27. Qe2 {[%clk 0:01:13]} 27... Rc7
{[%clk 0:00:22.5]} 28. Bc3 {[%clk 0:01:12.8]} 28... h3+ {[%clk 0:00:22]} 29. Kg1
{[%clk 0:01:13.5]} 29... Ng4 {[%clk 0:00:21.8]} 30. Bd4 {[%clk 0:00:56.4]} 30...
Bxd4 {[%clk 0:00:17.2]} 31. exd4 {[%clk 0:00:58.3]} 31... Rd8 {[%clk 0:00:16.8]}
32. Nc5 {[%clk 0:00:56.4]} 32... Qf5 {[%clk 0:00:15.8]} 33. Rd1 {[%clk
0:00:50.1]} 33... Re7 {[%clk 0:00:15.2]} 34. Rbc1 {[%clk 0:00:31.9]} 34... e3
{[%clk 0:00:16.1]} 35. fxe3 {[%clk 0:00:24.3]} 35... Rxe3 {[%clk 0:00:16.7]} 36.
Qf1 {[%clk 0:00:24.2]} 36... Qd5 {[%clk 0:00:11.9]} 37. Qxh3 {[%clk 0:00:22.3]}
37... Re2 {[%clk 0:00:11]} 38. Rf1 {[%clk 0:00:11.7]} 38... Qxd4+ {[%clk
0:00:11.2]} 39. Kh1 {[%clk 0:00:12.9]} 39... Qd5+ {[%clk 0:00:11.7]} 40. Kg1
{[%clk 0:00:13.6]} 40... Qxc5+ {[%clk 0:00:13]} 41. Kh1 {[%clk 0:00:15]} 41...
Qd5+ {[%clk 0:00:14.1]} 42. Kg1 {[%clk 0:00:16.2]} 42... Qd4+ {[%clk 0:00:14.8]}
43. Kh1 {[%clk 0:00:16.8]} 43... Nf2+ {[%clk 0:00:15]} 44. Rxf2 {[%clk 0:00:18]}
44... Qxf2 {[%clk 0:00:16.9]} 0-1

[Event "*** Titled Tuesday Blitz"]
[Site "Chess.com"]
[Date "2018.11.06"]
[Round "7"]
[White "DawidCzerw"]
[Black "GasconJR"]
[Result "1-0"]
[WhiteElo "2263"]
[BlackElo "2388"]
[TimeControl "180+2"]
[EndTime "14:37:02 PST"]
[Termination "DawidCzerw won by resignation"]

1. d4 {[%clk 0:03:01.9]} 1... Nf6 {[%clk 0:02:58.6]} 2. c4 {[%clk 0:03:02.8]}
2... e6 {[%clk 0:02:59.5]} 3. Nf3 {[%clk 0:03:03.5]} 3... b6 {[%clk 0:02:58.6]}
4. g3 {[%clk 0:03:04.4]} 4... Bb7 {[%clk 0:02:52.4]} 5. Bg2 {[%clk 0:03:04.9]}
5... Bb4+ {[%clk 0:02:46.9]} 6. Nbd2 {[%clk 0:03:00.4]} 6... O-O {[%clk
0:02:46.5]} 7. O-O {[%clk 0:03:00.4]} 7... a5 {[%clk 0:02:38.5]} 8. a3 {[%clk
0:02:52.7]} 8... Be7 {[%clk 0:02:34.7]} 9. b3 {[%clk 0:02:46.7]} 9... Ne4 {[%clk
0:02:32.8]} 10. Nxe4 {[%clk 0:02:44.4]} 10... Bxe4 {[%clk 0:02:32.9]} 11. Bb2
{[%clk 0:02:45.3]} 11... Na6 {[%clk 0:02:32.8]} 12. Qd2 {[%clk 0:02:39.8]} 12...
Bf6 {[%clk 0:02:32.8]} 13. Rfd1 {[%clk 0:02:30.3]} 13... c6 {[%clk 0:02:24.4]}
14. Ne5 {[%clk 0:02:03.1]} 14... Bxg2 {[%clk 0:02:23.8]} 15. Kxg2 {[%clk
0:02:05]} 15... Qc7 {[%clk 0:02:06.6]} 16. b4 {[%clk 0:01:56]} 16... axb4 {[%clk
0:01:57.5]} 17. axb4 {[%clk 0:01:57.9]} 17... d6 {[%clk 0:01:57.7]} 18. Nf3
{[%clk 0:01:55.1]} 18... b5 {[%clk 0:01:58.5]} 19. c5 {[%clk 0:01:47.7]} 19...
d5 {[%clk 0:01:55.6]} 20. Bc3 {[%clk 0:01:38]} 20... Qb7 {[%clk 0:01:56.4]} 21.
g4 {[%clk 0:01:24.7]} 21... Nc7 {[%clk 0:01:56.6]} 22. g5 {[%clk 0:01:23.1]}
22... Be7 {[%clk 0:01:57.1]} 23. Ne5 {[%clk 0:01:23.7]} 23... Rxa1 {[%clk
0:01:53.5]} 24. Rxa1 {[%clk 0:01:25.6]} 24... Ra8 {[%clk 0:01:54.3]} 25. Rxa8+
{[%clk 0:01:06.2]} 25... Qxa8 {[%clk 0:01:56.2]} 26. h4 {[%clk 0:01:07]} 26...
f6 {[%clk 0:01:47.2]} 27. gxf6 {[%clk 0:01:04.7]} 27... Bxf6 {[%clk 0:01:48]}
28. Qf4 {[%clk 0:00:54.6]} 28... Qe8 {[%clk 0:01:36.2]} 29. Ng4 {[%clk
0:00:41.3]} 29... Bd8 {[%clk 0:01:31.9]} 30. Bd2 {[%clk 0:00:31.8]} 30... Qh5
{[%clk 0:01:20]} 31. Ne5 {[%clk 0:00:21.7]} 31... Qe8 {[%clk 0:00:39.2]} 32. Qg3
{[%clk 0:00:21.9]} 32... Bf6 {[%clk 0:00:32.9]} 33. Bf4 {[%clk 0:00:19.6]} 33...
Na6 {[%clk 0:00:33.7]} 34. e3 {[%clk 0:00:13.3]} 34... Nxb4 {[%clk 0:00:33]} 35.
Ng4 {[%clk 0:00:14.4]} 35... Qg6 {[%clk 0:00:29.4]} 36. h5 {[%clk 0:00:13.8]}
36... Qe4+ {[%clk 0:00:27.5]} 37. f3 {[%clk 0:00:14.9]} 37... Qc2+ {[%clk
0:00:28.2]} 38. Kh3 {[%clk 0:00:16.4]} 38... Be7 {[%clk 0:00:23.2]} 39. Be5
{[%clk 0:00:13.2]} 39... Bf8 {[%clk 0:00:15.3]} 40. Nh6+ {[%clk 0:00:12.4]}
40... Kh8 {[%clk 0:00:16.5]} 41. Nf7+ {[%clk 0:00:12.8]} 41... Kg8 {[%clk
0:00:17.9]} 42. Nh6+ {[%clk 0:00:13.8]} 42... Kh8 {[%clk 0:00:19.1]} 43. Qf4
{[%clk 0:00:14.3]} 1-0

[Event "*** Titled Tuesday Blitz"]
[Site "Chess.com"]
[Date "2018.11.06"]
[Round "7"]
[White "ahachess"]
[Black "Supernotar"]
[Result "0-1"]
[WhiteElo "2350"]
[BlackElo "2372"]
[TimeControl "180+2"]
[EndTime "14:37:07 PST"]
[Termination "Supernotar won by resignation"]

1. d4 {[%clk 0:03:01.9]} 1... d5 {[%clk 0:03:00]} 2. c4 {[%clk 0:03:02.8]} 2...
dxc4 {[%clk 0:03:00.3]} 3. e3 {[%clk 0:03:01.8]} 3... Nf6 {[%clk 0:03:00.8]} 4.
Bxc4 {[%clk 0:03:02.3]} 4... e6 {[%clk 0:03:02]} 5. Nf3 {[%clk 0:03:03]} 5... a6
{[%clk 0:03:02.1]} 6. O-O {[%clk 0:03:03.1]} 6... b5 {[%clk 0:03:02.5]} 7. Be2
{[%clk 0:03:01.6]} 7... Bb7 {[%clk 0:03:03.6]} 8. Qc2 {[%clk 0:03:00.6]} 8...
Nbd7 {[%clk 0:03:04.2]} 9. Nbd2 {[%clk 0:02:59.9]} 9... c5 {[%clk 0:03:05.3]}
10. b3 {[%clk 0:02:59.6]} 10... Rc8 {[%clk 0:03:05.3]} 11. Qd1 {[%clk 0:02:47]}
11... Qb6 {[%clk 0:03:04.4]} 12. Bb2 {[%clk 0:02:47.4]} 12... Be7 {[%clk
0:03:04.9]} 13. Rc1 {[%clk 0:02:35.5]} 13... O-O {[%clk 0:03:05.3]} 14. h3
{[%clk 0:02:36.1]} 14... Rfd8 {[%clk 0:03:05.5]} 15. Ba3 {[%clk 0:02:13.1]}
15... h6 {[%clk 0:02:57.7]} 16. Rc2 {[%clk 0:01:59.5]} 16... Bf8 {[%clk
0:02:50.1]} 17. Qc1 {[%clk 0:02:00.2]} 17... cxd4 {[%clk 0:02:50.4]} 18. Bxf8
{[%clk 0:01:58.1]} 18... dxe3 {[%clk 0:02:37.1]} 19. Be7 {[%clk 0:01:22.2]}
19... exd2 {[%clk 0:02:29.5]} 20. Qxd2 {[%clk 0:01:22.9]} 20... Rxc2 {[%clk
0:02:25.1]} 21. Qxc2 {[%clk 0:01:23.5]} 21... Rc8 {[%clk 0:02:26.5]} 22. Qb2
{[%clk 0:01:17.1]} 22... Nd5 {[%clk 0:02:26.9]} 23. Rd1 {[%clk 0:01:01.9]} 23...
Qc6 {[%clk 0:02:12.5]} 24. Nd4 {[%clk 0:00:55.5]} 24... Qb6 {[%clk 0:01:52.3]}
25. Bh4 {[%clk 0:00:42.7]} 25... Nf4 {[%clk 0:01:49.2]} 26. Bf1 {[%clk
0:00:43.7]} 26... Ne5 {[%clk 0:01:36.8]} 27. Bg3 {[%clk 0:00:41.5]} 27... Neg6
{[%clk 0:01:33.9]} 28. Re1 {[%clk 0:00:27.2]} 28... Rd8 {[%clk 0:01:31.3]} 29.
Ne2 {[%clk 0:00:13.4]} 29... Nxh3+ {[%clk 0:01:28.8]} 30. Kh2 {[%clk 0:00:03.8]}
30... Nxf2 {[%clk 0:01:29]} 31. Nf4 {[%clk 0:00:03.7]} 31... Ng4+ {[%clk
0:01:29.4]} 32. Kh1 {[%clk 0:00:03.4]} 32... N6e5 {[%clk 0:01:14.2]} 33. Rxe5
{[%clk 0:00:02.8]} 33... Nxe5 {[%clk 0:01:13.3]} 34. Qxe5 {[%clk 0:00:04.2]}
34... Rd1 {[%clk 0:01:11.2]} 35. Qe2 {[%clk 0:00:04.8]} 35... Rb1 {[%clk
0:01:08.9]} 36. Kh2 {[%clk 0:00:05.8]} 36... Qc6 {[%clk 0:01:08.5]} 37. Nh5
{[%clk 0:00:05.1]} 37... Qd5 {[%clk 0:01:07.5]} 38. Qg4 {[%clk 0:00:05.8]} 38...
Qg5 {[%clk 0:01:03.8]} 39. Qxg5 {[%clk 0:00:07]} 39... hxg5 {[%clk 0:01:05]} 40.
Bd3 {[%clk 0:00:08.3]} 40... Rb2 {[%clk 0:01:02.7]} 41. Bf1 {[%clk 0:00:09.3]}
41... Rxa2 {[%clk 0:01:02.6]} 42. Be5 {[%clk 0:00:10.7]} 42... f6 {[%clk
0:01:03.3]} 43. Bd4 {[%clk 0:00:11]} 43... e5 {[%clk 0:01:03.5]} 44. Bc5 {[%clk
0:00:11.9]} 44... Bd5 {[%clk 0:01:04.7]} 45. b4 {[%clk 0:00:13]} 45... Bc4
{[%clk 0:01:02.4]} 46. Ng3 {[%clk 0:00:14.2]} 46... Kf7 {[%clk 0:01:00.2]} 47.
Kg1 {[%clk 0:00:13.4]} 47... Ke6 {[%clk 0:00:59.6]} 48. Bxc4+ {[%clk 0:00:13.1]}
48... bxc4 {[%clk 0:01:00.6]} 49. Kf1 {[%clk 0:00:14.2]} 49... c3 {[%clk
0:01:01]} 50. Ke1 {[%clk 0:00:13.4]} 50... Rxg2 {[%clk 0:01:01.2]} 51. Kd1
{[%clk 0:00:14.1]} 51... Rxg3 {[%clk 0:01:01.6]} 52. Kc2 {[%clk 0:00:15.4]}
52... Kd5 {[%clk 0:01:02.5]} 53. Kb3 {[%clk 0:00:14.6]} 53... a5 {[%clk
0:01:02.2]} 54. Bf8 {[%clk 0:00:14.4]} 54... axb4 {[%clk 0:01:02.3]} 55. Bxg7
{[%clk 0:00:15.7]} 55... Ke6 {[%clk 0:01:00.6]} 56. Bf8 {[%clk 0:00:16.6]} 56...
Rg4 {[%clk 0:01:00.4]} 57. Bc5 {[%clk 0:00:15.2]} 57... Rd4 {[%clk 0:01:00.8]}
0-1

[Event "*** Titled Tuesday Blitz"]
[Site "Chess.com"]
[Date "2018.11.06"]
[Round "7"]
[White "Alopekos"]
[Black "HaryKane"]
[Result "1-0"]
[WhiteElo "2489"]
[BlackElo "2552"]
[TimeControl "180+2"]
[EndTime "14:37:09 PST"]
[Termination "Alopekos won by resignation"]

1. e4 {[%clk 0:03:01.9]} 1... e6 {[%clk 0:02:59.5]} 2. d4 {[%clk 0:03:02.6]}
2... d5 {[%clk 0:03:01.1]} 3. Nc3 {[%clk 0:03:04.1]} 3... Nf6 {[%clk 0:02:59.9]}
4. e5 {[%clk 0:03:05.3]} 4... Nfd7 {[%clk 0:03:01.1]} 5. Qg4 {[%clk 0:03:06.9]}
5... c5 {[%clk 0:03:01.9]} 6. dxc5 {[%clk 0:03:08.8]} 6... Nc6 {[%clk 0:03:01]}
7. Nf3 {[%clk 0:03:09.3]} 7... Ndxe5 {[%clk 0:03:01.1]} 8. Nxe5 {[%clk
0:03:11.2]} 8... Nxe5 {[%clk 0:03:02.3]} 9. Qg3 {[%clk 0:03:12.8]} 9... Ng6
{[%clk 0:03:00.8]} 10. Nb5 {[%clk 0:03:13.3]} 10... e5 {[%clk 0:02:54.9]} 11. h4
{[%clk 0:03:14.7]} 11... a6 {[%clk 0:02:47.1]} 12. h5 {[%clk 0:03:15.2]} 12...
Nf4 {[%clk 0:02:24.5]} 13. Nd6+ {[%clk 0:03:15.4]} 13... Bxd6 {[%clk 0:02:24.6]}
14. Qxg7 {[%clk 0:03:16.4]} 14... Rf8 {[%clk 0:02:18.1]} 15. cxd6 {[%clk
0:03:15.1]} 15... Qxd6 {[%clk 0:02:11.3]} 16. Bxf4 {[%clk 0:03:15]} 16... exf4
{[%clk 0:02:13.2]} 17. O-O-O {[%clk 0:03:16.4]} 17... Be6 {[%clk 0:02:11.8]} 18.
Bd3 {[%clk 0:02:44.7]} 18... O-O-O {[%clk 0:02:09.4]} 19. Qd4 {[%clk 0:01:44.5]}
19... h6 {[%clk 0:02:05.8]} 20. Rh4 {[%clk 0:01:43.5]} 20... Rg8 {[%clk
0:02:01.3]} 21. Bf1 {[%clk 0:01:33.8]} 21... Rg4 {[%clk 0:01:53.7]} 22. Rxg4
{[%clk 0:01:08]} 22... Bxg4 {[%clk 0:01:55.6]} 23. f3 {[%clk 0:01:09.4]} 23...
Bxh5 {[%clk 0:01:55.2]} 24. Bc4 {[%clk 0:01:07.8]} 24... Rg8 {[%clk 0:01:28.7]}
25. Bxd5 {[%clk 0:01:07.3]} 25... Kb8 {[%clk 0:01:26.8]} 26. Qd2 {[%clk
0:00:46.9]} 26... Bg6 {[%clk 0:01:05.3]} 27. Bb3 {[%clk 0:00:34.8]} 27... Qxd2+
{[%clk 0:00:59.5]} 28. Rxd2 {[%clk 0:00:36.7]} 28... Kc7 {[%clk 0:00:54.3]} 29.
Kd1 {[%clk 0:00:37.6]} 29... h5 {[%clk 0:00:51.6]} 30. Ke2 {[%clk 0:00:37.2]}
30... Bf5 {[%clk 0:00:50.1]} 31. Kf2 {[%clk 0:00:35.7]} 31... Be6 {[%clk
0:00:48.7]} 32. Rd4 {[%clk 0:00:34.9]} 32... Rd8 {[%clk 0:00:35.3]} 33. Rxd8
{[%clk 0:00:25.6]} 33... Kxd8 {[%clk 0:00:37.2]} 34. Bxe6 {[%clk 0:00:26.8]}
34... fxe6 {[%clk 0:00:39.1]} 35. Ke2 {[%clk 0:00:28.4]} 35... Ke7 {[%clk
0:00:38.4]} 36. Kd3 {[%clk 0:00:29.6]} 36... e5 {[%clk 0:00:38.3]} 37. Ke4
{[%clk 0:00:29.6]} 37... Ke6 {[%clk 0:00:39.6]} 38. c4 {[%clk 0:00:27.3]} 38...
a5 {[%clk 0:00:33.7]} 39. b3 {[%clk 0:00:27.2]} 39... Kd6 {[%clk 0:00:34]} 40.
a3 {[%clk 0:00:24.6]} 40... a4 {[%clk 0:00:29.2]} 41. b4 {[%clk 0:00:19.4]}
41... b6 {[%clk 0:00:30.5]} 42. Kf5 {[%clk 0:00:12.4]} 42... h4 {[%clk
0:00:26.1]} 43. Ke4 {[%clk 0:00:13.6]} 43... Ke6 {[%clk 0:00:26]} 44. c5 {[%clk
0:00:14.6]} 44... bxc5 {[%clk 0:00:25.9]} 45. bxc5 {[%clk 0:00:16.5]} 45... Kf6
{[%clk 0:00:21.6]} 46. c6 {[%clk 0:00:14.3]} 46... Ke6 {[%clk 0:00:22.8]} 47. c7
{[%clk 0:00:15.1]} 47... Kd7 {[%clk 0:00:24.1]} 48. Kxe5 {[%clk 0:00:16.6]}
48... Kxc7 {[%clk 0:00:25.6]} 49. Kxf4 {[%clk 0:00:18.2]} 49... Kc6 {[%clk
0:00:27.5]} 50. Kg4 {[%clk 0:00:19.5]} 50... Kc5 {[%clk 0:00:29.4]} 51. f4
{[%clk 0:00:20.4]} 51... Kc4 {[%clk 0:00:31.3]} 52. f5 {[%clk 0:00:21.9]} 52...
Kb3 {[%clk 0:00:33.2]} 53. f6 {[%clk 0:00:23.5]} 53... Kxa3 {[%clk 0:00:35.1]}
54. f7 {[%clk 0:00:25.1]} 54... Kb2 {[%clk 0:00:37]} 55. f8=Q {[%clk 0:00:26.7]}
55... a3 {[%clk 0:00:38.9]} 56. Qf2+ {[%clk 0:00:26.2]} 56... Kb1 {[%clk
0:00:39.9]} 57. Qe1+ {[%clk 0:00:27.2]} 57... Kb2 {[%clk 0:00:38.3]} 58. Qd2+
{[%clk 0:00:28.5]} 1-0

[Event "*** Titled Tuesday Blitz"]
[Site "Chess.com"]
[Date "2018.11.06"]
[Round "7"]
[White "Jenia84"]
[Black "BjarkeSahl"]
[Result "1-0"]
[WhiteElo "2259"]
[BlackElo "2160"]
[TimeControl "180+2"]
[EndTime "14:37:11 PST"]
[Termination "Jenia84 won by resignation"]

1. d4 {[%clk 0:03:01.9]} 1... Nf6 {[%clk 0:03:00.1]} 2. Bf4 {[%clk 0:03:01.6]}
2... b5 {[%clk 0:02:58.2]} 3. a4 {[%clk 0:02:54.9]} 3... b4 {[%clk 0:02:59]} 4.
c3 {[%clk 0:02:55.1]} 4... a5 {[%clk 0:02:59.7]} 5. g3 {[%clk 0:02:51.7]} 5...
Bb7 {[%clk 0:02:59.6]} 6. Nf3 {[%clk 0:02:52.4]} 6... e6 {[%clk 0:02:58.2]} 7.
Bg2 {[%clk 0:02:53.2]} 7... Be7 {[%clk 0:02:59.3]} 8. O-O {[%clk 0:02:53.4]}
8... O-O {[%clk 0:02:57.2]} 9. Nbd2 {[%clk 0:02:49.6]} 9... d6 {[%clk 0:02:52]}
10. Qc2 {[%clk 0:02:43.9]} 10... Nbd7 {[%clk 0:02:47.9]} 11. e4 {[%clk
0:02:44.5]} 11... c5 {[%clk 0:02:46.2]} 12. Rfe1 {[%clk 0:02:41.4]} 12... Qb6
{[%clk 0:02:33.7]} 13. Rab1 {[%clk 0:02:40.9]} 13... Rfc8 {[%clk 0:02:32.2]} 14.
e5 {[%clk 0:02:30.4]} 14... Nd5 {[%clk 0:02:01.9]} 15. Nc4 {[%clk 0:02:20.1]}
15... Qa6 {[%clk 0:02:01.6]} 16. Nxd6 {[%clk 0:02:12.3]} 16... Bxd6 {[%clk
0:02:01.4]} 17. exd6 {[%clk 0:02:13]} 17... Nxf4 {[%clk 0:02:01.7]} 18. gxf4
{[%clk 0:02:13.9]} 18... cxd4 {[%clk 0:01:40.7]} 19. Nxd4 {[%clk 0:02:07.7]}
19... Bxg2 {[%clk 0:01:38]} 20. Kxg2 {[%clk 0:02:08.3]} 20... Qxd6 {[%clk
0:01:38.6]} 21. Qe4 {[%clk 0:01:57.2]} 21... bxc3 {[%clk 0:01:23]} 22. bxc3
{[%clk 0:01:56.7]} 22... Nf6 {[%clk 0:01:23.8]} 23. Qf3 {[%clk 0:01:56]} 23...
Qd5 {[%clk 0:01:12.9]} 24. Nb5 {[%clk 0:01:44.7]} 24... Rc4 {[%clk 0:01:06.9]}
25. Red1 {[%clk 0:01:11.7]} 25... Qxf3+ {[%clk 0:00:58.9]} 26. Kxf3 {[%clk
0:01:11.8]} 26... Rxa4 {[%clk 0:00:59.9]} 27. Nc7 {[%clk 0:01:12.3]} 27... Rf8
{[%clk 0:00:53.7]} 28. Rd3 {[%clk 0:01:06.5]} 28... g6 {[%clk 0:00:49.6]} 29.
Rbd1 {[%clk 0:01:02.1]} 29... Kg7 {[%clk 0:00:44.2]} 30. Nb5 {[%clk 0:00:56.9]}
30... Nd5 {[%clk 0:00:33.3]} 31. Rd4 {[%clk 0:00:56.4]} 31... Rxd4 {[%clk
0:00:22.5]} 32. Rxd4 {[%clk 0:00:53.9]} 32... Rc8 {[%clk 0:00:15.7]} 33. c4
{[%clk 0:00:53.8]} 33... Nb4 {[%clk 0:00:13.3]} 34. Nd6 {[%clk 0:00:50.9]} 34...
Rc5 {[%clk 0:00:12.8]} 35. Ne8+ {[%clk 0:00:47.3]} 35... Kf8 {[%clk 0:00:12.5]}
36. Nf6 {[%clk 0:00:47.7]} 36... Ke7 {[%clk 0:00:08.5]} 37. Ne4 {[%clk
0:00:43.3]} 37... Rh5 {[%clk 0:00:08.4]} 38. c5 {[%clk 0:00:40.6]} 38... Nd5
{[%clk 0:00:07]} 39. c6 {[%clk 0:00:34]} 39... Rf5 {[%clk 0:00:04.6]} 40. Nc5
{[%clk 0:00:30]} 40... Kd6 {[%clk 0:00:02.6]} 41. Nb3 {[%clk 0:00:22.9]} 41...
a4 {[%clk 0:00:02.7]} 42. Rxa4 {[%clk 0:00:22.3]} 42... Kxc6 {[%clk 0:00:04.2]}
43. Nd4+ {[%clk 0:00:22.3]} 43... Kc5 {[%clk 0:00:05]} 44. Nxf5 {[%clk
0:00:23.4]} 44... gxf5 {[%clk 0:00:06.5]} 45. Ra7 {[%clk 0:00:24.1]} 45... f6
{[%clk 0:00:07.4]} 46. Rxh7 {[%clk 0:00:24.5]} 46... e5 {[%clk 0:00:08.8]} 47.
Rh5 {[%clk 0:00:22.8]} 47... e4+ {[%clk 0:00:08.3]} 48. Kg3 {[%clk 0:00:23.4]}
48... Ne7 {[%clk 0:00:07.7]} 1-0

[Event "*** Titled Tuesday Blitz"]
[Site "Chess.com"]
[Date "2018.11.06"]
[Round "7"]
[White "Ramosha"]
[Black "wadsy27"]
[Result "1-0"]
[WhiteElo "2471"]
[BlackElo "2354"]
[TimeControl "180+2"]
[EndTime "14:37:18 PST"]
[Termination "Ramosha won by resignation"]

1. d4 {[%clk 0:03:01.9]} 1... Nf6 {[%clk 0:02:59.4]} 2. c4 {[%clk 0:03:01.3]}
2... c5 {[%clk 0:02:59.5]} 3. d5 {[%clk 0:03:02.6]} 3... e6 {[%clk 0:02:59.9]}
4. Nc3 {[%clk 0:03:03.1]} 4... exd5 {[%clk 0:03:00.6]} 5. cxd5 {[%clk 0:03:05]}
5... d6 {[%clk 0:03:01.4]} 6. e4 {[%clk 0:03:06.3]} 6... g6 {[%clk 0:02:59.6]}
7. Bd3 {[%clk 0:03:07.7]} 7... Bg7 {[%clk 0:02:59.3]} 8. h3 {[%clk 0:03:09.2]}
8... O-O {[%clk 0:02:56.5]} 9. Nf3 {[%clk 0:03:10.6]} 9... Nh5 {[%clk
0:02:57.2]} 10. O-O {[%clk 0:03:09.9]} 10... a6 {[%clk 0:02:54.4]} 11. a4 {[%clk
0:03:10.1]} 11... Nd7 {[%clk 0:02:53.8]} 12. Bg5 {[%clk 0:03:08.9]} 12... Bf6
{[%clk 0:02:53.7]} 13. Be3 {[%clk 0:03:09.3]} 13... Re8 {[%clk 0:02:51.8]} 14.
Re1 {[%clk 0:03:05.3]} 14... Ne5 {[%clk 0:02:46.7]} 15. Be2 {[%clk 0:03:06.3]}
15... Nxf3+ {[%clk 0:02:47.4]} 16. Bxf3 {[%clk 0:03:07]} 16... Ng7 {[%clk
0:02:49]} 17. Qb3 {[%clk 0:02:27.1]} 17... Rb8 {[%clk 0:02:48.7]} 18. a5 {[%clk
0:02:06.6]} 18... Bd7 {[%clk 0:02:43.7]} 19. Na4 {[%clk 0:01:48]} 19... Bg5
{[%clk 0:02:35.7]} 20. Nb6 {[%clk 0:01:44.7]} 20... Bb5 {[%clk 0:02:29]} 21. Be2
{[%clk 0:01:29.6]} 21... Bxe3 {[%clk 0:02:29.6]} 22. Qxe3 {[%clk 0:01:28.5]}
22... Bxe2 {[%clk 0:02:19.1]} 23. Rxe2 {[%clk 0:01:15.1]} 23... Nf5 {[%clk
0:02:19.1]} 24. Qf4 {[%clk 0:01:16]} 24... Nd4 {[%clk 0:02:19.9]} 25. Re3 {[%clk
0:00:54.5]} 25... Nc2 {[%clk 0:02:14]} 26. Rae1 {[%clk 0:00:38.6]} 26... Nxe1
{[%clk 0:02:12.3]} 27. Rxe1 {[%clk 0:00:40.5]} 27... Kg7 {[%clk 0:02:08]} 28.
Nc4 {[%clk 0:00:40.3]} 28... Re7 {[%clk 0:01:56.7]} 29. Nxd6 {[%clk 0:00:39.3]}
29... Qd7 {[%clk 0:01:54.5]} 30. Nf5+ {[%clk 0:00:25.9]} 30... gxf5 {[%clk
0:01:53]} 31. Qxb8 {[%clk 0:00:27.3]} 31... Rxe4 {[%clk 0:01:24.2]} 32. Rxe4
{[%clk 0:00:27.5]} 32... fxe4 {[%clk 0:01:25.4]} 33. Qe5+ {[%clk 0:00:28.9]}
33... f6 {[%clk 0:01:24.3]} 34. Qxe4 {[%clk 0:00:29.5]} 34... Qc7 {[%clk
0:01:16.5]} 35. Qg4+ {[%clk 0:00:29.1]} 35... Kf8 {[%clk 0:01:09.6]} 36. Qe6
{[%clk 0:00:29.2]} 36... Qxa5 {[%clk 0:01:01.3]} 37. Qxf6+ {[%clk 0:00:30.2]}
37... Ke8 {[%clk 0:01:01.9]} 38. Qe6+ {[%clk 0:00:30.1]} 38... Kf8 {[%clk
0:01:00.5]} 39. Qc8+ {[%clk 0:00:29.8]} 39... Kg7 {[%clk 0:00:53.5]} 40. Qxb7+
{[%clk 0:00:31.3]} 40... Kg6 {[%clk 0:00:54.2]} 41. Qc6+ {[%clk 0:00:32.4]}
41... Kg7 {[%clk 0:00:54.5]} 42. Qd7+ {[%clk 0:00:33]} 42... Kf8 {[%clk
0:00:51.4]} 43. Qf5+ {[%clk 0:00:33]} 43... Kg7 {[%clk 0:00:43.6]} 44. Qe5+
{[%clk 0:00:32.5]} 44... Kf8 {[%clk 0:00:43.5]} 45. d6 {[%clk 0:00:33.6]} 45...
Qd2 {[%clk 0:00:33.9]} 46. Qxc5 {[%clk 0:00:22.5]} 46... Kf7 {[%clk 0:00:34.2]}
47. Qf5+ {[%clk 0:00:22.4]} 47... Kg7 {[%clk 0:00:28.9]} 48. Qd7+ {[%clk
0:00:22.8]} 48... Kg6 {[%clk 0:00:26.1]} 49. Qe6+ {[%clk 0:00:23.8]} 49... Kg7
{[%clk 0:00:26.2]} 50. g3 {[%clk 0:00:21.3]} 50... Qd1+ {[%clk 0:00:15.8]} 51.
Kg2 {[%clk 0:00:21.8]} 1-0